bitfinex-derivatives/quotes_SOLF0:USTF0_20250928
["timestamp","ask_amount","ask_price","bid_price","bid_amount"]
[1759047252655,7.83,202.1,202.06,1.37893218]
[1759047252858,3.43394858,202.09,202.06,1.37893218]
[1759047253056,7.83,202.1,202.06,1.37893218]
[1759047253361,3.43396442,202.09,202.07,7.6]
[1759047253562,7.83,202.1,202.07,7.6]
[1759047253762,3.4339338,202.09,202.07,7.6]
[1759047253967,7.83,202.1,202.07,7.6]
[1759047254167,3.43393318,202.09,202.07,7.6]
[1759047254367,7.83,202.1,202.07,7.6]
[1759047254668,3.43392255,202.09,202.07,7.6]
[1759047254971,7.83,202.1,202.06,1.37893218]
[1759047255268,3.43392421,202.09,202.07,7.6]
[1759047255466,7.83,202.1,202.07,7.6]
[1759047255761,3.4339122,202.09,202.07,7.6]
[1759047255965,7.83,202.1,202.07,7.6]
[1759047256166,3.43391293,202.09,202.06,1.37893218]
[1759047256366,7.83,202.1,202.07,7.6]
[1759047256669,3.43390249,202.09,202.07,7.6]
[1759047256873,7.83,202.1,202.06,1.37893218]
[1759047257065,3.43390249,202.09,202.07,7.6]
[1759047257264,7.83,202.1,202.07,7.6]
[1759047257469,3.433892,202.09,202.06,1.37893218]
[1759047257665,12.5407,202.12,202.07,7.6]
[1759047257866,11.52387512,202.11,202.06,1.37893218]
[1759047258061,8.09,202.09,202.07,7.6]
[1759047263471,8.09,202.09,202.07,7.72]
[1759047265077,12.2207,202.12,202.07,7.72]
[1759047265282,11.20431096,202.11,202.07,7.72]
[1759047265576,3.43431096,202.1,202.06,5.83073218]
[1759047265774,3.43431096,202.09,202.07,7.72]
[1759047266077,7.77,202.11,202.07,7.72]
[1759047266274,3.43429444,202.1,202.06,5.83073218]
[1759047266478,3.43429444,202.09,202.07,7.72]
[1759047266671,7.77,202.11,202.06,5.83073218]
[1759047266871,3.43427179,202.1,202.06,5.83073218]
[1759047267074,3.43427179,202.09,202.07,7.72]
[1759047267275,7.77,202.11,202.06,5.83073218]
[1759047267474,3.43425504,202.1,202.06,5.83073218]
[1759047267674,3.43425504,202.09,202.06,5.83073218]
[1759047267979,7.77,202.11,202.06,5.83073218]
[1759047268170,3.43425481,202.1,202.07,7.72]
[1759047268374,3.43425481,202.09,202.06,5.83073218]
[1759047268569,7.77,202.11,202.06,1.37893218]
[1759047268778,1.37893218,202.15,202.0,1.37893218]
[1759047268779,9.14893218,202.09,202.0,1.37893218]
[1759047269083,9.14893218,202.07,201.99,7.72]
[1759047269274,7.77,202.05,201.99,7.72]
[1759047270681,7.77,202.05,201.99,12.1733]
[1759047280785,12.2222,202.05,201.99,7.72]
[1759047280987,3.50369845,202.04,201.99,7.72]
[1759047281179,7.77,202.04,201.97,4.4538]
[1759047282683,7.77,202.02,201.96,8.5948802]
[1759047283285,12.2229,202.02,201.96,8.5948802]
[1759047283493,7.77,202.02,201.96,0.8748802]
[1759047283991,4.88133816,202.01,201.96,0.8748802]
[1759047284186,1.37893218,202.01,201.96,0.8748802]
[1759047284495,7.77,202.0,201.96,0.8748802]
[1759047284692,7.77,202.0,201.93,12.1747]
[1759047286993,12.2234,202.0,201.93,12.1747]
[1759047287592,7.77,201.99,201.93,12.1747]
[1759047287891,7.77,201.99,201.93,4.4547]
[1759047288090,7.77,201.99,201.95,7.72]
[1759047288482,7.77,201.99,201.94,1.37893218]
[1759047288889,7.77,202.01,201.95,7.72]
[1759047294111,12.2232,202.01,201.95,7.72]
[1759047294801,7.77,202.01,201.95,7.72]
[1759047302815,4.4533,202.0,201.95,7.72]
[1759047303716,7.86,201.99,201.96,7.36]
[1759047304411,7.86,202.04,201.94,7.36]
[1759047304819,4.4527,202.03,201.94,11.8143]
[1759047305015,7.86,202.02,201.95,7.36]
[1759047305528,99.45264051,202.01,201.92,7.36]
[1759047305717,77.1366,201.99,201.88,7.36]
[1759047305914,4.4543,201.95,201.88,7.36]
[1759047306118,7.86,201.94,201.88,7.36]
[1759047313126,7.45,201.92,201.87,0.8554188]
[1759047313523,191.44317094,201.96,201.87,0.8554188]
[1759047313722,10.96891046,201.95,201.87,0.8554188]
[1759047313921,7.45,201.93,201.87,0.8554188]
[1759047314619,4.4551,201.92,201.85,7.61]
[1759047317824,11.9051,201.92,201.85,7.61]
[1759047318218,4.4553,201.91,201.85,7.61]
[1759047319121,7.45,201.9,201.84,7.61]
[1759047319326,11.9056,201.9,201.84,7.61]
[1759047321328,4.4558,201.89,201.84,7.61]
[1759047321726,7.45,201.88,201.84,7.61]
[1759047321924,7.45,201.88,201.83,7.61]
[1759047322727,11.9058,201.89,201.83,7.61]
[1759047322926,7.45,201.86,201.83,7.61]
[1759047323121,7.45,201.86,201.79,7.61]
[1759047324329,11.8156,201.9,201.79,7.61]
[1759047324529,11.8156,201.9,201.79,9.76667094]
[1759047324731,11.8156,201.9,201.8,8.06]
[1759047325533,11.8156,201.9,201.81,4.4572]
[1759047325727,11.8156,201.9,201.82,8.06]
[1759047326138,4.4558,201.89,201.82,8.06]
[1759047326638,7.36,201.88,201.82,8.06]
[1759047336944,11.816,201.88,201.82,8.06]
[1759047338543,4.4562,201.87,201.82,8.06]
[1759047338746,4.4562,201.87,201.8,8.06]
[1759047342149,4.4562,201.87,201.8,4.4575]
[1759047342448,4.4562,201.87,201.81,8.06]
[1759047343948,9.51667094,201.95,201.81,8.06]
[1759047344149,7.36,201.93,201.81,8.06]
[1759047344348,7.36,201.91,201.81,8.06]
[1759047345551,4.4555,201.9,201.83,4.4568]
[1759047345743,4.4555,201.9,201.84,8.06]
[1759047349448,7.36,201.89,201.84,8.06]
[1759047349646,7.36,201.89,201.83,4.4568]
[1759047349842,11.8155,201.9,201.84,8.06]
[1759047350148,3.52361212,201.89,201.84,8.06]
[1759047350342,11.8155,201.9,201.84,8.06]
[1759047350549,7.36,201.88,201.83,4.4568]
[1759047350748,7.36,201.88,201.84,8.06]
[1759047350953,7.36,201.88,201.83,4.4568]
[1759047352152,7.36,201.88,201.84,8.06]
[1759047352454,7.36,201.88,201.83,4.4568]
[1759047352754,7.36,201.88,201.84,8.06]
[1759047352948,7.36,201.88,201.83,4.4568]
[1759047353167,7.36,201.88,201.84,8.06]
[1759047353455,7.36,201.88,201.83,4.4568]
[1759047354050,7.36,201.88,201.84,7.47]
[1759047354454,7.36,201.88,201.83,4.4568]
[1759047355049,7.36,201.88,201.84,7.47]
[1759047355457,7.36,201.88,201.83,4.4568]
[1759047356356,7.36,201.88,201.84,7.47]
[1759047356553,11.8858,201.89,201.83,4.4568]
[1759047357049,4.4558,201.89,201.83,4.4568]
[1759047357456,7.43,201.88,201.84,7.47]
[1759047357649,4.4558,201.89,201.83,4.4568]
[1759047357955,7.43,201.88,201.84,7.47]
[1759047358456,7.43,201.88,201.83,4.4568]
[1759047358659,7.43,201.88,201.84,7.47]
[1759047359156,7.43,201.88,201.83,4.4568]
[1759047359356,7.43,201.88,201.84,7.47]
[1759047360151,7.43,201.88,201.83,4.4568]
[1759047360152,7.43,201.97,201.85,7.47]
[1759047360350,7.43,201.94,201.85,7.47]
[1759047361357,4.4549,201.93,201.87,4.456]
[1759047361560,1.381774,201.93,201.84,7.47]
[1759047361754,7.43,201.92,201.84,7.47]
[1759047362562,11.8851,201.92,201.85,4.4564]
[1759047363064,7.43,201.92,201.87,4.456]
[1759047363263,3.53052077,201.91,201.87,4.456]
[1759047363464,7.43,201.97,201.9,7.47]
[1759047363763,7.43,201.95,201.9,7.47]
[1759047363954,7.43,201.93,201.9,7.47]
[1759047364352,7.43,201.93,201.87,1.381774]
[1759047364552,7.43,201.93,201.89,4.4555]
[1759047364756,7.43,201.94,201.84,7.47]
[1759047365068,7.43,201.92,201.84,7.47]
[1759047365361,3.52809945,201.91,201.84,7.47]
[1759047365569,7.43,201.92,201.84,7.47]
[1759047365864,3.52829411,201.91,201.84,7.47]
[1759047366070,7.43,201.92,201.84,7.47]
[1759047366256,3.53782163,201.91,201.84,7.47]
[1759047366453,7.43,201.92,201.84,7.47]
[1759047366653,3.53780437,201.91,201.85,4.4564]
[1759047366855,11.8851,201.92,201.85,4.4564]
[1759047367054,3.53780437,201.91,201.85,4.4564]
[1759047367256,11.8851,201.92,201.85,4.4564]
[1759047367457,7.43,201.9,201.84,7.47]
[1759047369267,7.43,201.9,201.85,7.47]
[1759047369458,7.43,201.9,201.84,5.838374]
[1759047369961,7.43,201.9,201.85,7.47]
[1759047370167,7.43,201.9,201.84,5.838374]
[1759047370361,7.43,201.9,201.85,7.52]
[1759047370764,7.43,201.9,201.84,5.838374]
[1759047371164,7.43,201.9,201.85,7.52]
[1759047371565,7.43,201.9,201.84,5.838374]
[1759047371966,7.43,201.9,201.85,7.52]
[1759047372357,12.5553,201.91,201.85,7.52]
[1759047373265,8.1,201.89,201.83,62.86]
[1759047373462,3.53678477,201.9,201.83,62.86]
[1759047373463,8.1,201.9,201.83,62.86]
[1759047373657,8.1,201.88,201.83,62.86]
[1759047373861,8.1,201.9,201.83,62.86]
[1759047374075,3.53689465,201.89,201.83,62.86]
[1759047374368,8.1,201.9,201.83,70.38]
[1759047374567,8.1,201.88,201.83,70.38]
[1759047374763,4.4558,201.89,201.83,70.38]
[1759047374964,8.1,201.88,201.83,70.38]
[1759047375166,8.1,201.88,201.83,62.86]
[1759047375371,4.4558,201.89,201.83,62.86]
[1759047375566,8.1,201.88,201.82,4.4571]
[1759047376164,3.53748844,201.87,201.81,7.52]
[1759047376366,8.1,201.88,201.81,7.52]
[1759047376570,3.53748844,201.87,201.81,7.52]
[1759047376770,12.556,201.88,201.81,7.52]
[1759047377071,4.91926244,201.87,201.81,7.52]
[1759047377370,3.53748844,201.86,201.81,7.52]
[1759047377571,8.1,201.84,201.81,7.52]
[1759047378671,5.837974,201.87,201.81,7.52]
[1759047378972,8.1,201.85,201.81,7.52]
[1759047379273,1.381774,201.87,201.81,7.52]
[1759047379468,8.1,201.85,201.81,7.52]
[1759047379671,1.381774,201.87,201.81,7.52]
[1759047379870,8.1,201.85,201.81,7.52]
[1759047380173,1.381774,201.87,201.81,7.52]
[1759047380373,3.53505438,201.86,201.81,7.52]
[1759047380673,4.4564,201.86,201.81,7.52]
[1759047381469,8.1,201.84,201.76,7.52]
[1759047381665,8.1,201.82,201.76,7.52]
[1759047382289,1.381774,201.85,201.76,7.52]
[1759047382576,8.1,201.86,201.8,7.52]
[1759047382871,11.63370311,201.85,201.79,1.381774]
[1759047383072,8.1,201.85,201.79,1.381774]
[1759047383280,8.1,201.85,201.8,7.78]
[1759047383476,8.1,201.85,201.79,1.381774]
[1759047383975,8.1,201.85,201.8,7.78]
[1759047384166,5.837874,201.87,201.79,1.381774]
[1759047384369,11.21269474,201.86,201.8,7.78]
[1759047384671,3.53269474,201.85,201.8,7.78]
[1759047384878,7.68,201.85,201.8,7.78]
[1759047385277,7.68,201.86,201.8,7.78]
[1759047385578,3.5322504,201.85,201.8,7.78]
[1759047385874,7.68,201.86,201.8,7.78]
[1759047386074,3.5322504,201.85,201.8,7.78]
[1759047386268,7.68,201.86,201.8,7.78]
[1759047386467,11.21183076,201.85,201.78,4.4579]
[1759047386675,7.68,201.85,201.79,7.78]
[1759047388584,12.1365,201.85,201.79,7.78]
[1759047389985,7.68,201.85,201.79,12.2376]
[1759047390183,7.68,201.88,201.81,7.78]
[1759047390887,7.68,201.88,201.81,12.2372]
[1759047392596,12.136,201.88,201.81,12.2372]
[1759047393891,7.68,201.88,201.82,7.78]
[1759047395992,7.68,201.88,201.82,4.457]
[1759047396297,7.68,201.88,201.82,5.838774]
[1759047396590,7.68,201.88,201.83,7.78]
[1759047396895,7.68,201.88,201.82,5.838774]
[1759047397093,7.68,201.88,201.83,7.78]
[1759047397987,7.68,201.88,201.82,5.838774]
[1759047398386,7.68,201.89,201.83,7.78]
[1759047398591,3.53973032,201.88,201.83,7.78]
[1759047398800,7.68,201.89,201.83,7.78]
[1759047398993,3.53973032,201.88,201.82,5.838774]
[1759047399193,7.68,201.89,201.83,7.78]
[1759047399488,3.53989539,201.88,201.82,5.838774]
[1759047399804,7.68,201.89,201.83,7.78]
[1759047399993,3.53991265,201.88,201.83,7.78]
[1759047400198,7.68,201.89,201.83,7.78]
[1759047400394,3.54008897,201.88,201.82,5.838774]
[1759047400593,7.68,201.89,201.83,4.4568]
[1759047400788,4.4555,201.9,201.84,7.78]
[1759047400989,11.21975392,201.89,201.83,12.2368]
[1759047401199,7.68,201.89,201.83,12.2368]
[1759047401900,7.68,201.92,201.85,7.78]
[1759047402296,4.4549,201.93,201.87,7.78]
[1759047402495,3.53944028,201.92,201.86,1.381774]
[1759047402701,12.1349,201.93,201.87,7.78]
[1759047402896,3.53944155,201.92,201.87,7.78]
[1759047403201,12.1349,201.93,201.87,7.78]
[1759047403401,7.68,201.91,201.86,1.381774]
[1759047403602,7.68,201.91,201.86,5.837874]
[1759047404297,7.68,201.91,201.87,7.78]
[1759047404998,7.68,201.91,201.86,5.837874]
[1759047405188,7.68,201.91,201.87,7.78]
[1759047405390,7.68,201.91,201.86,5.837874]
[1759047406204,7.68,201.91,201.87,7.78]
[1759047406404,7.68,201.91,201.86,5.837874]
[1759047407002,7.68,201.91,201.87,7.78]
[1759047407404,7.68,201.91,201.86,5.837874]
[1759047407606,7.68,201.91,201.87,7.78]
[1759047407797,7.68,201.91,201.86,5.837874]
[1759047408203,7.68,201.91,201.87,7.78]
[1759047408608,7.68,201.92,201.87,7.78]
[1759047408808,7.68,201.9,201.87,7.78]
[1759047409009,7.68,201.92,201.87,7.78]
[1759047409209,7.68,201.9,201.87,7.78]
[1759047409404,7.68,201.9,201.84,1.381774]
[1759047410011,7.68,201.9,201.85,7.78]
[1759047410213,7.68,201.9,201.84,1.381774]
[1759047410403,7.68,201.9,201.85,7.78]
[1759047410606,7.68,201.9,201.85,4.4564]
[1759047410812,7.68,201.9,201.86,7.78]
[1759047411111,7.68,201.9,201.85,4.4564]
[1759047411416,7.68,201.9,201.86,7.78]
[1759047411614,7.68,201.9,201.85,4.4564]
[1759047411910,7.68,201.9,201.86,7.78]
[1759047412212,7.68,201.9,201.85,4.4564]
[1759047412402,7.68,201.9,201.86,7.78]
[1759047412804,7.68,201.9,201.85,4.4564]
[1759047413205,7.68,201.9,201.86,7.8]
[1759047413413,7.4,201.92,201.86,7.8]
[1759047413613,3.54055551,201.91,201.86,7.8]
[1759047413814,7.4,201.92,201.86,7.8]
[1759047414015,7.4,201.9,201.86,7.8]
[1759047414315,1.381774,201.93,201.85,12.2564]
[1759047414316,7.4,201.92,201.85,12.2564]
[1759047414515,3.54068376,201.91,201.85,12.2564]
[1759047414715,7.4,201.92,201.85,12.2564]
[1759047414915,3.54068376,201.91,201.85,12.2564]
[1759047415115,4.4546,201.94,201.85,12.2564]
[1759047415314,7.4,201.92,201.85,12.2564]
[1759047415514,3.54081662,201.91,201.85,12.2564]
[1759047415715,7.4,201.92,201.85,12.2564]
[1759047415916,3.54081662,201.91,201.85,12.2564]
[1759047416113,7.4,201.92,201.85,12.2564]
[1759047416314,3.54095174,201.91,201.86,4.4561]
[1759047416614,7.4,201.92,201.86,4.4561]
[1759047416811,7.4,201.9,201.86,12.2561]
[1759047417015,4.4546,201.94,201.86,12.2561]
[1759047417218,7.4,201.92,201.86,12.2561]
[1759047417417,3.54113861,201.91,201.86,12.2561]
[1759047417612,7.4,201.93,201.86,12.2561]
[1759047417813,7.4,201.91,201.86,12.2561]
[1759047418106,7.4,201.93,201.86,4.4561]
[1759047418418,3.5413317,201.92,201.86,4.4561]
[1759047418617,7.4,201.9,201.86,12.2561]
[1759047418818,4.4546,201.94,201.86,12.2561]
[1759047419014,7.4,201.92,201.86,12.2561]
[1759047419215,3.54134833,201.91,201.86,12.2561]
[1759047419410,4.4546,201.94,201.86,12.2561]
[1759047419614,7.4,201.92,201.86,12.2561]
[1759047419815,7.4,201.9,201.86,12.2561]
[1759047420015,4.4546,201.94,201.86,12.2561]
[1759047420212,3.54114462,201.93,201.86,12.2561]
[1759047420410,7.4,201.91,201.86,4.4561]
[1759047420616,7.4,201.93,201.86,4.4561]
[1759047420816,7.4,201.91,201.86,4.4561]
[1759047421018,7.4,201.93,201.86,4.4561]
[1759047421322,3.54103842,201.92,201.86,4.4561]
[1759047421636,7.4,201.9,201.87,7.8]
[1759047421924,7.4,201.95,201.87,7.8]
[1759047422116,3.54081989,201.94,201.87,7.8]
[1759047422317,7.4,201.95,201.87,7.8]
[1759047422620,3.53965604,201.94,201.87,7.8]
[1759047422818,7.4,201.95,201.87,7.8]
[1759047423122,3.53961823,201.94,201.87,7.8]
[1759047423324,7.4,201.95,201.87,7.8]
[1759047423517,2.15836455,201.98,201.89,4.4554]
[1759047423518,3.5391017,201.94,201.89,4.4554]
[1759047423722,7.4,201.94,201.9,7.8]
[1759047424418,7.4,201.94,201.89,4.4554]
[1759047424719,7.4,201.94,201.9,7.8]
[1759047424924,6.61206455,201.98,201.86,69.3207]
[1759047425221,10.93865152,201.97,201.87,7.8]
[1759047425422,3.53865152,201.96,201.87,7.8]
[1759047425624,3.53865152,201.95,201.87,7.8]
[1759047425813,7.4,201.97,201.87,7.8]
[1759047426015,3.53837416,201.96,201.87,7.8]
[1759047426214,3.53837416,201.95,201.87,7.8]
[1759047426417,7.4,201.97,201.87,7.8]
[1759047426624,3.54205974,201.96,201.9,4.4552]
[1759047426825,10.94205974,201.95,201.91,7.8]
[1759047427027,7.4,201.95,201.9,4.4552]
[1759047427221,7.4,201.95,201.91,7.8]
[1759047427416,7.4,201.97,201.91,7.8]
[1759047427632,7.4,202.02,201.91,7.8]
[1759047427921,7.4,202.02,201.94,7.8]
[1759047428621,7.4,202.07,201.97,7.8]
[1759047429621,7.4,202.07,202.01,7.8]
[1759047430623,7.4,202.07,202.02,4.4527]
[1759047430917,8.06,202.1,202.02,4.4527]
[1759047431329,8.06,202.08,202.01,7.59]
[1759047434333,8.06,202.08,201.97,105.78984842]
[1759047434334,8.06,202.09,201.98,7.59]
[1759047434639,8.06,202.06,201.95,7.59]
[1759047435632,4.4523,202.04,201.95,7.59]
[1759047435929,8.06,202.03,201.95,7.59]
[1759047436234,8.06,202.0,201.92,7.59]
[1759047437129,2.15836455,202.01,201.85,7.59]
[1759047437332,8.06,202.0,201.86,7.59]
[1759047437832,4.4539,201.97,201.87,4.4559]
[1759047438033,8.06,201.96,201.88,7.59]
[1759047444436,8.06,201.96,201.88,12.0457]
[1759047447739,8.06,201.96,201.89,8.12]
[1759047450137,12.5142,201.96,201.89,8.12]
[1759047451738,12.5142,201.96,201.89,12.5755]
[1759047451941,12.5142,201.96,201.9,8.12]
[1759047460362,4.4547,201.94,201.9,8.12]
[1759047460562,7.99,201.93,201.87,8.12]
[1759047461764,7.99,201.93,201.82,8.12]
[1759047462259,4.4557,201.89,201.82,8.12]
[1759047462460,7.99,201.88,201.82,8.12]
[1759047463661,12.446,201.88,201.82,8.12]
[1759047464860,7.99,201.86,201.79,4.4578]
[1759047465064,7.99,201.86,201.79,12.5778]
[1759047466367,7.99,201.86,201.79,8.12]
[1759047467059,4.457,201.83,201.76,19.4983]
[1759047467265,4.457,201.83,201.77,8.12]
[1759047470365,7.99,201.84,201.77,8.12]
[1759047470880,86.99836455,201.91,201.77,8.12]
[1759047470881,7.99,201.87,201.77,8.12]
[1759047471768,7.99,201.87,201.8,12.5776]
[1759047471964,7.99,201.87,201.8,8.12]
[1759047472168,4.4565,201.86,201.8,8.12]
[1759047473967,7.99,201.87,201.8,8.12]
[1759047475567,12.4462,201.87,201.8,8.12]
[1759047480669,12.4462,201.87,201.8,9.50203875]
[1759047484877,12.2255,201.9,201.83,7.72]
[1759047485971,4.4558,201.89,201.83,7.72]
[1759047486170,7.77,201.88,201.83,7.72]
[1759047486375,7.77,201.9,201.83,7.72]
[1759047486671,1.38203875,201.91,201.83,7.72]
[1759047486672,4.456,201.88,201.83,7.72]
[1759047487078,7.77,201.87,201.83,7.72]
[1759047487872,7.77,201.87,201.82,1.38203875]
[1759047488079,7.77,201.87,201.83,7.72]
[1759047488679,7.77,201.87,201.82,1.38203875]
[1759047488874,7.77,201.87,201.83,7.72]
[1759047489276,4.456,201.88,201.83,7.72]
[1759047490075,7.5,201.87,201.83,7.72]
[1759047490381,4.456,201.88,201.83,7.72]
[1759047490574,7.5,201.87,201.83,7.72]
[1759047490880,4.456,201.88,201.83,7.72]
[1759047491180,7.5,201.87,201.83,7.72]
[1759047491376,4.456,201.88,201.83,7.72]
[1759047491777,7.5,201.87,201.83,7.72]
[1759047491978,4.456,201.88,201.83,7.72]
[1759047492274,7.5,201.87,201.82,7.73]
[1759047492470,4.456,201.88,201.82,7.73]
[1759047492680,11.956,201.88,201.82,7.73]
[1759047493476,1.38203875,201.87,201.82,7.73]
[1759047493680,1.38203875,201.87,201.75,16.02425697]
[1759047493681,7.5,201.86,201.79,7.73]
[1759047494576,4.4566,201.85,201.79,7.73]
[1759047494773,7.5,201.86,201.75,32.62425697]
[1759047494774,8.88203875,201.89,201.8,1.38203875]
[1759047494987,7.5,201.89,201.81,7.73]
[1759047495486,7.5,201.89,201.81,9.11203875]
[1759047495887,8.88203875,201.89,201.81,9.11203875]
[1759047497578,4.456,201.88,201.81,9.11203875]
[1759047498386,7.5,201.89,201.83,1.38203875]
[1759047498887,7.5,201.89,201.84,7.73]
[1759047499083,7.5,201.89,201.83,1.38203875]
[1759047499592,7.5,201.89,201.84,4.4566]
[1759047499886,7.5,201.89,201.85,7.73]
[1759047500082,7.5,201.89,201.84,4.4566]
[1759047500284,7.5,201.89,201.85,7.73]
[1759047500487,7.5,201.89,201.84,4.4566]
[1759047500988,7.5,201.89,201.85,7.73]
[1759047501386,5.83733875,201.91,201.85,7.73]
[1759047501583,11.00344343,201.9,201.85,7.73]
[1759047501794,7.5,201.89,201.85,7.73]
[1759047501979,4.4556,201.9,201.85,7.73]
[1759047502188,7.5,201.89,201.85,7.73]
[1759047502585,11.9558,201.89,201.82,4.4571]
[1759047502889,11.9558,201.89,201.83,7.73]
[1759047505193,3.50968522,201.88,201.82,4.4571]
[1759047505493,4.4558,201.89,201.83,7.61]
[1759047505686,3.50972506,201.88,201.83,7.61]
[1759047505888,4.4558,201.89,201.83,7.61]
[1759047506088,3.50972506,201.88,201.82,4.4571]
[1759047506294,4.4558,201.89,201.83,7.61]
[1759047506494,3.51100298,201.88,201.82,4.4571]
[1759047506687,12.2658,201.89,201.83,7.61]
[1759047506888,3.51100301,201.88,201.83,8.99203875]
[1759047507096,4.4558,201.89,201.83,8.99203875]
[1759047507393,11.32133785,201.88,201.83,1.38203875]
[1759047507587,7.81,201.88,201.84,7.61]
[1759047508098,7.81,201.88,201.82,4.4571]
[1759047508393,7.81,201.88,201.84,7.61]
[1759047508587,7.81,201.88,201.83,1.38203875]
[1759047508993,7.81,201.88,201.84,7.61]
[1759047509196,7.81,201.88,201.83,1.38203875]
[1759047509892,4.4558,201.89,201.84,7.61]
[1759047510094,7.81,201.87,201.84,7.61]
[1759047511396,7.81,201.87,201.83,1.38203875]
[1759047511591,7.81,201.87,201.84,7.61]
[1759047511993,7.81,201.87,201.83,5.83883875]
[1759047512397,7.81,201.87,201.84,7.61]
[1759047512894,7.81,201.87,201.83,5.83883875]
[1759047513098,7.81,201.87,201.84,7.61]
[1759047513294,4.4558,201.89,201.83,5.83883875]
[1759047513496,7.81,201.92,201.85,1.38203875]
[1759047513700,3.51169275,201.91,201.85,1.38203875]
[1759047513908,7.81,201.92,201.88,7.61]
[1759047514199,3.51184947,201.91,201.87,1.38203875]
[1759047514401,7.81,201.92,201.88,7.61]
[1759047514593,3.51147575,201.91,201.88,7.61]
[1759047514904,7.81,201.92,201.87,1.38203875]
[1759047515217,3.51147575,201.91,201.87,1.38203875]
[1759047515409,7.81,201.92,201.88,7.61]
[1759047515598,3.51126255,201.91,201.88,7.61]
[1759047515798,4.4548,201.93,201.88,7.61]
[1759047516001,7.81,201.91,201.88,7.61]
[1759047516201,7.81,201.94,201.87,1.38203875]
[1759047516397,3.50410632,201.93,201.87,1.38203875]
[1759047516602,7.81,201.91,201.85,8.99203875]
[1759047517607,7.81,201.91,201.85,13.44843875]
[1759047519308,4.4551,201.92,201.86,4.4561]
[1759047519509,7.81,201.9,201.87,7.61]
[1759047522509,4.4551,201.92,201.87,7.61]
[1759047522710,11.31343052,201.91,201.86,4.4561]
[1759047523010,7.81,201.91,201.87,7.61]
[1759047523205,7.81,201.91,201.86,4.4561]
[1759047523406,7.81,201.91,201.87,7.61]
[1759047523607,12.2646,201.94,201.88,7.61]
[1759047523811,3.50303578,201.93,201.87,1.38203875]
[1759047524011,11.31303578,201.92,201.88,7.61]
[1759047524306,7.81,201.92,201.88,7.61]
[1759047524712,7.81,201.92,201.89,7.61]
[1759047525714,7.81,201.92,201.88,4.4557]
[1759047526513,7.81,201.92,201.89,7.61]
[1759047527111,7.81,201.92,201.88,4.4557]
[1759047527507,7.81,201.92,201.89,7.61]
[1759047532112,7.81,201.98,201.9,7.61]
[1759047532317,3.50219046,201.97,201.9,7.61]